[Event "Test Tournament"]
[Site "Emanuel Lasker Arena"]
[Date "2024.04.02"]
[Round "2"]
[White "Jed Bartlet"]
[Black "Swindler"]
[Result "1-0"]
[WhiteElo "2103"]
[BlackElo "2233"]
[Annotator "RC"]
[PlyCount "63"]
[EventDate "2024.04.02"]
[EventType "swiss (blitz)"]
[TimeControl "60"]

1. Nf3 {[%emt 0:00:01]} c6 {[%emt 0:00:01]} 2. c4 {[%emt 0:00:01]} d5 {[%emt 0:00:01]} 3. e3 {[%emt 0:00:01]} Bg4 {[%emt 0:00:01]} 4. d4 {[%emt 0:00:01]} e6 {[%emt 0:00:01]} 5. Nc3 {[%emt 0:00:01]} Nf6 {[%emt 0:00:01]} 6. h3 {[%emt 0:00:01]} Bf5 {[%emt 0:00:01]} 7. c5 {[%emt 0:00:01]} h5 {[%emt 0:00:01]} 8. h4 {[%emt 0:00:01]} Ng4 {[%emt 0:00:01]} 9. Ng5 {[%emt 0:00:01]} Qa5 {[%emt 0:00:01]} 10. Bd2 {[%emt 0:00:01]} Be7 {[%emt 0:00:01]} 11. Nxd5 {[%emt 0:00:01]} Qd8 {[%emt 0:00:01]} 12. Nxe7 {[%emt 0:00:00]} Qxe7 {[%emt 0:00:00]} 13. e4 {[%emt 0:00:01]} f6 {[%emt 0:00:01]} 14. exf5 {[%emt 0:00:01]} fxg5 {[%emt 0:00:00]} 15. hxg5 {[%emt 0:00:00]} exf5+ {[%emt 0:00:01]} 16. Qe2 {[%emt 0:00:01]} h4 {[%emt 0:00:02]} 17. Qxe7+ {[%emt 0:00:01]} Kxe7 {[%emt 0:00:00]} 18. Bc4 {[%emt 0:00:01]} Na6 {[%emt 0:00:02]} 19. f3 {[%emt 0:00:01]} b5 {[%emt 0:00:01]} 20. cxb6 {[%emt 0:00:01]} Kd6 {[%emt 0:00:01]} 21. Bf4+ {[%emt 0:00:01]} Ke7 {[%emt 0:00:01]} 22. b7 {[%emt 0:00:01]} Rae8 {[%emt 0:00:02]} 23. Bxa6 {[%emt 0:00:01]} Kd7+ {[%emt 0:00:01]} 24. Kd2 {[%emt 0:00:01]} Nf2 {[%emt 0:00:01]} 25. Rhe1 {[%emt 0:00:01]} Rxe1 {[%emt 0:00:00]} 26. Rxe1 {[%emt 0:00:00]} h3 {[%emt 0:00:02]} 27. Bc4 {[%emt 0:00:01]} Rb8 {[%emt 0:00:01]} 28. Bxb8 {[%emt 0:00:01]} Ne4+ {[%emt 0:00:01]} 29. fxe4 {[%emt 0:00:01]} fxe4 {[%emt 0:00:00]} 30. Bxa7 {[%emt 0:00:00]} e3+ {[%emt 0:00:01]} 31. Rxe3 {[%emt 0:00:01]} c5 {[%emt 0:00:01]} 32. Bb5+ {[%emt 0:00:01]} 1-0

[Event "Test Tournament"]
[Site "Emanuel Lasker Arena"]
[Date "2024.04.09"]
[Round "2"]
[White "StressTest"]
[Black "Hollis"]
[Result "1-0"]
[WhiteElo "2101"]
[BlackElo "1881"]
[Annotator "RC"]
[PlyCount "31"]
[EventDate "2024.04.09"]
[EventType "swiss (blitz)"]
[TimeControl "60"]

1. e4 {[%emt 0:00:01]} Nf6 {[%emt 0:00:01]} 2. e5 {[%emt 0:00:01]} Nd5 {[%emt 0:00:01]} 3. d4 {[%emt 0:00:01]} d6 {[%emt 0:00:02]} 4. Nf3 {[%emt 0:00:01]} dxe5 {[%emt 0:00:01]} 5. Nxe5 {[%emt 0:00:01]} Bf5 {[%emt 0:00:01]} 6. Qf3 {[%emt 0:00:01]} e6 {[%emt 0:00:05]} 7. g4 {[%emt 0:00:04]} Bg6 {[%emt 0:00:04]} 8. Nc3 {[%emt 0:00:02]} Nc6 {[%emt 0:00:07]} 9. Bb5 {[%emt 0:00:05]} Ndb4 {[%emt 0:00:06]} 10. O-O {[%emt 0:00:01]} Rc8 {[%emt 0:00:03]} 11. a3 {[%emt 0:00:03]} Nxc2 {[%emt 0:00:02]} 12. Bxc6+ {[%emt 0:00:01]} bxc6 {[%emt 0:00:01]} 13. Qxc6+ {[%emt 0:00:01]} Ke7 {[%emt 0:00:02]} 14. Bg5+ {[%emt 0:00:03]} f6 {[%emt 0:00:01]} 15. d5 {[%emt 0:00:03]} fxg5 {[%emt 0:00:02]} 16. Qxe6# {[%emt 0:00:02] (Lag: Av=0.05s, max=0.1s)} 1-0

[Event "Test Tournament"]
[Site "Emanuel Lasker Arena"]
[Date "2024.04.09"]
[Round "2"]
[White "StressTest"]
[Black "Daenerys"]
[Result "1-0"]
[WhiteElo "2101"]
[BlackElo "1925"]
[Annotator "RC"]
[PlyCount "31"]
[EventDate "2024.04.09"]
[EventType "swiss (blitz)"]
[TimeControl "60"]

1. d4 {[%emt 0:00:01]} Nf6 {[%emt 0:00:01]} 2. c4 {[%emt 0:00:01]} e6 {[%emt 0:00:01]} 3. Nf3 {[%emt 0:00:01]} b6 {[%emt 0:00:01]} 4. g3 {[%emt 0:00:01]} Ba6 {[%emt 0:00:01]} 5. b3 {[%emt 0:00:01]} Bb4+ {[%emt 0:00:01]} 6. Bd2 {[%emt 0:00:01]} Be7 {[%emt 0:00:01]} 7. Nc3 {[%emt 0:00:01]} O-O {[%emt 0:00:01]} 8. e4 {[%emt 0:00:01]} Bb7 {[%emt 0:00:01]} 9. Bd3 {[%emt 0:00:01]} Bb4 {[%emt 0:00:02]} 10. Qc2 {[%emt 0:00:02]} h6 {[%emt 0:00:01]} 11. O-O {[%emt 0:00:04]} g6 {[%emt 0:00:04]} 12. Rfe1 {[%emt 0:00:01]} d5 {[%emt 0:00:04]} 13. exd5 {[%emt 0:00:04]} exd5 {[%emt 0:00:01]} 14. Bxh6 {[%emt 0:00:01]} dxc4 {[%emt 0:00:04]} 15. Bxc4 {[%emt 0:00:01]} Bxf3 {[%emt 0:00:01]} 16. Qxg6+ {[%emt 0:00:01] Daenerys resigns (Lag: Av=0.04s, max=0.1s)} 1-0

[Event "Test Tournament"]
[Site "Emanuel Lasker Arena"]
[Date "2024.04.09"]
[Round "2"]
[White "MikhailBerg"]
[Black "Josha Matin"]
[Result "0-1"]
[WhiteElo "2094"]
[BlackElo "2219"]
[Annotator "RC"]
[PlyCount "96"]
[EventDate "2024.04.09"]
[EventType "swiss (blitz)"]
[TimeControl "60"]

1. e4 {[%emt 0:00:01]} e5 {[%emt 0:00:01]} 2. Nf3 {[%emt 0:00:01]} Nc6 {[%emt 0:00:01]} 3. Bb5 {[%emt 0:00:01]} a6 {[%emt 0:00:01]} 4. Ba4 {[%emt 0:00:01]} d6 {[%emt 0:00:01]} 5. Bxc6+ {[%emt 0:00:01]} bxc6 {[%emt 0:00:01]} 6. d4 {[%emt 0:00:01]} f6 {[%emt 0:00:01]} 7. Be3 {[%emt 0:00:01]} Ne7 {[%emt 0:00:01]} 8. Nc3 {[%emt 0:00:01]} Ng6 {[%emt 0:00:01]} 9. Qd2 {[%emt 0:00:04]} Be7 {[%emt 0:00:01]} 10. h4 {[%emt 0:00:01]} h5 {[%emt 0:00:02]} 11. O-O-O {[%emt 0:00:04]} O-O {[%emt 0:00:04]} 12. Qd3 {[%emt 0:00:03]} Be6 {[%emt 0:00:04]} 13. d5 {[%emt 0:00:03]} cxd5 {[%emt 0:00:04]} 14. exd5 {[%emt 0:00:01]} Bf7 {[%emt 0:00:01]} 15. Qf5 {[%emt 0:00:03]} Rb8 {[%emt 0:00:02]} 16. g4 {[%emt 0:00:05]} Qc8 {[%emt 0:00:04]} 17. Qxh5 {[%emt 0:00:01]} Nf4 {[%emt 0:00:03]} 18. Qf5 {[%emt 0:00:01]} Qxf5 {[%emt 0:00:01]} 19. gxf5 {[%emt 0:00:01]} Bh5 {[%emt 0:00:03]} 20. Bxf4 {[%emt 0:00:01]} Bxf3 {[%emt 0:00:01]} 21. Be3 {[%emt 0:00:02]} Bxh1 {[%emt 0:00:01]} 22. Rxh1 {[%emt 0:00:01]} Rb4 {[%emt 0:00:02]} 23. a3 {[%emt 0:00:02]} Rg4 {[%emt 0:00:02]} 24. h5 {[%emt 0:00:02]} Rb8 {[%emt 0:00:02]} 25. Ba7 {[%emt 0:00:02]} Rb7 {[%emt 0:00:01]} 26. Be3 {[%emt 0:00:02]} Rc4 {[%emt 0:00:02]} 27. h6 {[%emt 0:00:02]} a5 {[%emt 0:00:02]} 28. Rg1 {[%emt 0:00:01]} Bf8 {[%emt 0:00:01]} 29. hxg7 {[%emt 0:00:01]} Bxg7 {[%emt 0:00:01]} 30. Bh6 {[%emt 0:00:01]} c5 {[%emt 0:00:01]} 31. Rg6 {[%emt 0:00:01]} Kh8 {[%emt 0:00:01]} 32. Nb5 {[%emt 0:00:01]} Bxh6+ {[%emt 0:00:01]} 33. Rxh6+ {[%emt 0:00:01]} Rh7 {[%emt 0:00:01]} 34. Rxh7+ {[%emt 0:00:00]} Kxh7 {[%emt 0:00:01]} 35. Nxd6 {[%emt 0:00:01]} Rf4 {[%emt 0:00:01]} 36. Nb7 {[%emt 0:00:00]} Rxf2 {[%emt 0:00:01]} 37. Nxc5 {[%emt 0:00:01]} Rxf5 {[%emt 0:00:01]} 38. d6 {[%emt 0:00:00]} Rf1+ {[%emt 0:00:00]} 39. Kd2 {[%emt 0:00:00]} f5 {[%emt 0:00:00]} 40. d7 {[%emt 0:00:00]} Rf2+ {[%emt 0:00:00]} 41. Kc3 {[%emt 0:00:00]} Rf3+ {[%emt 0:00:01]} 42. Nd3 {[%emt 0:00:01]} e4 {[%emt 0:00:00]} 43. d8=Q {[%emt 0:00:01]} exd3 {[%emt 0:00:01]} 44. Qd7+ {[%emt 0:00:01]} Kh6 {[%emt 0:00:00]} 45. Qc6+ {[%emt 0:00:00]} Kg5 {[%emt 0:00:00]} 46. Qxf3 {[%emt 0:00:00]} f4 {[%emt 0:00:00]} 47. cxd3 {[%emt 0:00:01]} a4 {[%emt 0:00:00]} 48. Qe4 {[%emt 0:00:01] .} Kg4 {[%emt 0:00:00]} 0-1

[Event "Test Tournament"]
[Site "Emanuel Lasker Arena"]
[Date "2024.04.09"]
[Round "2"]
[White "Toby Ziegler"]
[Black "Einpassant"]
[Result "0-1"]
[WhiteElo "2064"]
[BlackElo "1620"]
[Annotator "RC"]
[PlyCount "88"]
[EventDate "2024.04.09"]
[EventType "swiss (blitz)"]
[TimeControl "60"]

1. d4 {[%emt 0:00:01]} d5 {[%emt 0:00:01]} 2. c4 {[%emt 0:00:01]} e6 {[%emt 0:00:01]} 3. Nf3 {[%emt 0:00:01]} Nf6 {[%emt 0:00:01]} 4. g3 {[%emt 0:00:01]} Bb4+ {[%emt 0:00:01]} 5. Bd2 {[%emt 0:00:01]} Be7 {[%emt 0:00:01]} 6. Bg2 {[%emt 0:00:01]} O-O {[%emt 0:00:01]} 7. O-O {[%emt 0:00:01]} Nbd7 {[%emt 0:00:01]} 8. Qc2 {[%emt 0:00:01]} c6 {[%emt 0:00:01]} 9. Rd1 {[%emt 0:00:01]} b6 {[%emt 0:00:01]} 10. b3 {[%emt 0:00:01]} Ba6 {[%emt 0:00:01]} 11. a4 {[%emt 0:00:04]} c5 {[%emt 0:00:01]} 12. Na3 {[%emt 0:00:01]} Ne4 {[%emt 0:00:04]} 13. cxd5 {[%emt 0:00:01]} exd5 {[%emt 0:00:01]} 14. Nb5 {[%emt 0:00:03]} Bb7 {[%emt 0:00:01]} 15. Be3 {[%emt 0:00:03]} a6 {[%emt 0:00:07]} 16. Ne5 {[%emt 0:00:07]} axb5 {[%emt 0:00:01]} 17. dxc5 {[%emt 0:00:03]} Nxe5 {[%emt 0:00:01]} 18. Bxe4 {[%emt 0:00:01]} bxc5 {[%emt 0:00:01]} 19. Bxc5 {[%emt 0:00:00]} Bxc5 {[%emt 0:00:01]} 20. Qxc5 {[%emt 0:00:01]} bxa4 {[%emt 0:00:01]} 21. bxa4 {[%emt 0:00:01]} Qa5 {[%emt 0:00:03]} 22. Qe7 {[%emt 0:00:03]} dxe4 {[%emt 0:00:01]} 23. Qxb7 {[%emt 0:00:01]} e3 {[%emt 0:00:03]} 24. f4 {[%emt 0:00:02]} Ng4 {[%emt 0:00:02]} 25. Rd5 {[%emt 0:00:02]} Qc3 {[%emt 0:00:02]} 26. Rf1 {[%emt 0:00:02]} Rxa4 {[%emt 0:00:02]} 27. Rd3 {[%emt 0:00:02]} Qc2 {[%emt 0:00:02]} 28. Re1 {[%emt 0:00:02]} Nf2 {[%emt 0:00:02]} 29. Rxe3 {[%emt 0:00:01]} Ng4 {[%emt 0:00:02]} 30. Rf3 {[%emt 0:00:02]} Re8 {[%emt 0:00:02]} 31. Qb2 {[%emt 0:00:01]} Rxe2 {[%emt 0:00:02]} 32. Qb8+ {[%emt 0:00:01]} Qc8 {[%emt 0:00:01]} 33. Qxc8+ {[%emt 0:00:00]} Re8 {[%emt 0:00:01]} 34. Re5 {[%emt 0:00:01]} Rxc8 {[%emt 0:00:01]} 35. Re1 {[%emt 0:00:01]} Ra2 {[%emt 0:00:01]} 36. h3 {[%emt 0:00:01]} Nh2 {[%emt 0:00:01]} 37. Rfe3 {[%emt 0:00:01]} f5 {[%emt 0:00:01]} 38. Kh1 {[%emt 0:00:00]} Rd8 {[%emt 0:00:01]} 39. Rc1 {[%emt 0:00:00]} Rdd2 {[%emt 0:00:01]} 40. Re8+ {[%emt 0:00:00]} Kf7 {[%emt 0:00:00]} 41. Re5 {[%emt 0:00:00]} g6 {[%emt 0:00:00]} 42. Rc6 {[%emt 0:00:00]} Ra1+ {[%emt 0:00:00]} 43. Rc1 {[%emt 0:00:00]} Rxc1+ {[%emt 0:00:00]} 44. Re1 {[%emt 0:00:00]} Rxe1# {[%emt 0:00:00] (Lag: Av=0.08s, max=0.7s)} 0-1

[Event "Test Tournament"]
[Site "Emanuel Lasker Arena"]
[Date "2024.04.09"]
[Round "2"]
[White "Brutus"]
[Black "Josha Matin"]
[Result "1/2-1/2"]
[WhiteElo "2043"]
[BlackElo "2225"]
[Annotator "RC"]
[PlyCount "98"]
[EventDate "2024.04.09"]
[EventType "swiss (blitz)"]
[TimeControl "60"]

1. d4 {[%emt 0:00:01]} Nf6 {[%emt 0:00:01]} 2. c4 {[%emt 0:00:01]} g6 {[%emt 0:00:01]} 3. Nc3 {[%emt 0:00:01]} Bg7 {[%emt 0:00:01]} 4. e4 {[%emt 0:00:01]} d6 {[%emt 0:00:01]} 5. Nf3 {[%emt 0:00:01]} O-O {[%emt 0:00:01]} 6. Be2 {[%emt 0:00:01]} e5 {[%emt 0:00:01]} 7. O-O {[%emt 0:00:01]} Nc6 {[%emt 0:00:01]} 8. d5 {[%emt 0:00:01]} Ne7 {[%emt 0:00:01]} 9. Ne1 {[%emt 0:00:01]} Nd7 {[%emt 0:00:01]} 10. Nd3 {[%emt 0:00:01]} f5 {[%emt 0:00:01]} 11. Bd2 {[%emt 0:00:01]} Kh8 {[%emt 0:00:01]} 12. b4 {[%emt 0:00:04]} Nf6 {[%emt 0:00:04]} 13. f3 {[%emt 0:00:01]} f4 {[%emt 0:00:00]} 14. a4 {[%emt 0:00:01]} g5 {[%emt 0:00:00]} 15. a5 {[%emt 0:00:03]} c6 {[%emt 0:00:02]} 16. Kh1 {[%emt 0:00:03]} h5 {[%emt 0:00:03]} 17. Qa4 {[%emt 0:00:06]} g4 {[%emt 0:00:03]} 18. Qa3 {[%emt 0:00:04]} Bh6 {[%emt 0:00:03]} 19. g3 {[%emt 0:00:02]} b5 {[%emt 0:00:03]} 20. Nxe5 {[%emt 0:00:03]} dxe5 {[%emt 0:00:01]} 21. gxf4 {[%emt 0:00:01]} bxc4 {[%emt 0:00:05]} 22. fxe5 {[%emt 0:00:03]} Be3 {[%emt 0:00:01]} 23. Bxe3 {[%emt 0:00:00]} Nfxd5 {[%emt 0:00:01]} 24. exd5 {[%emt 0:00:01]} Nxd5 {[%emt 0:00:01]} 25. Nxd5 {[%emt 0:00:01]} Qxd5 {[%emt 0:00:01]} 26. b5 {[%emt 0:00:02]} Bf5 {[%emt 0:00:03]} 27. Qd6 {[%emt 0:00:02]} Qxd6 {[%emt 0:00:02]} 28. exd6 {[%emt 0:00:01]} cxb5 {[%emt 0:00:01]} 29. fxg4 {[%emt 0:00:01]} hxg4 {[%emt 0:00:01]} 30. Bd4+ {[%emt 0:00:02]} Kg8 {[%emt 0:00:01]} 31. a6 {[%emt 0:00:01]} Rad8 {[%emt 0:00:02]} 32. Bxa7 {[%emt 0:00:01]} Be4+ {[%emt 0:00:02]} 33. Kg1 {[%emt 0:00:01]} Bf3 {[%emt 0:00:02]} 34. Bxf3 {[%emt 0:00:00]} gxf3 {[%emt 0:00:01]} 35. Bd4 {[%emt 0:00:01]} Rxd6 {[%emt 0:00:01]} 36. Bc5 {[%emt 0:00:01]} Rg6+ {[%emt 0:00:01]} 37. Kh1 {[%emt 0:00:01]} Ra8 {[%emt 0:00:01]} 38. a7 {[%emt 0:00:01]} c3 {[%emt 0:00:00]} 39. Rxf3 {[%emt 0:00:00]} b4 {[%emt 0:00:01]} 40. Bxb4 {[%emt 0:00:00]} c2 {[%emt 0:00:00]} 41. Bc5 {[%emt 0:00:00]} Rxa7 {[%emt 0:00:01]} 42. Bxa7 {[%emt 0:00:00]} Rg4 {[%emt 0:00:01]} 43. Rg1 {[%emt 0:00:00]} Rxg1+ {[%emt 0:00:01]} 44. Bxg1 {[%emt 0:00:01]} c1=Q {[%emt 0:00:00]} 45. Rg3+ {[%emt 0:00:01]} Kh7 {[%emt 0:00:00]} 46. h3 {[%emt 0:00:00]} Qa1 {[%emt 0:00:00]} 47. Rg2 {[%emt 0:00:00]} Qxg1+ {[%emt 0:00:00]} 48. Kxg1 {[%emt 0:00:01]} Kh6 {[%emt 0:00:00]} 49. Rg8 {[%emt 0:00:00] .} Kh7 {[%emt 0:00:00]} 1/2-1/2

[Event "Test Tournament"]
[Site "Emanuel Lasker Arena"]
[Date "2024.04.09"]
[Round "2"]
[White "Brutus"]
[Black "Encheladus"]
[Result "1-0"]
[WhiteElo "2041"]
[BlackElo "1620"]
[Annotator "RC"]
[PlyCount "87"]
[EventDate "2024.04.09"]
[EventType "swiss (blitz)"]
[TimeControl "60"]

1. d4 {[%emt 0:00:01]} Nf6 {[%emt 0:00:01]} 2. c4 {[%emt 0:00:01]} e6 {[%emt 0:00:01]} 3. Nc3 {[%emt 0:00:01]} Bb4 {[%emt 0:00:01]} 4. e3 {[%emt 0:00:01]} O-O {[%emt 0:00:01]} 5. Nge2 {[%emt 0:00:01]} d5 {[%emt 0:00:01]} 6. a3 {[%emt 0:00:01]} Be7 {[%emt 0:00:01]} 7. cxd5 {[%emt 0:00:01]} exd5 {[%emt 0:00:01]} 8. g3 {[%emt 0:00:01]} c6 {[%emt 0:00:01]} 9. Bg2 {[%emt 0:00:01]} Bd6 {[%emt 0:00:01]} 10. Bd2 {[%emt 0:00:02]} Bf5 {[%emt 0:00:01]} 11. h3 {[%emt 0:00:02]} Re8 {[%emt 0:00:03]} 12. Qb3 {[%emt 0:00:05]} b5 {[%emt 0:00:03]} 13. O-O {[%emt 0:00:03]} Bd3 {[%emt 0:00:04]} 14. Rfd1 {[%emt 0:00:03]} a5 {[%emt 0:00:03]} 15. Be1 {[%emt 0:00:03]} a4 {[%emt 0:00:01]} 16. Qa2 {[%emt 0:00:01]} Bc4 {[%emt 0:00:03]} 17. Qb1 {[%emt 0:00:01]} Na6 {[%emt 0:00:03]} 18. Nf4 {[%emt 0:00:03]} Qd7 {[%emt 0:00:03]} 19. Qc2 {[%emt 0:00:03]} g5 {[%emt 0:00:03]} 20. Nd3 {[%emt 0:00:02]} h5 {[%emt 0:00:02]} 21. Ne5 {[%emt 0:00:02]} Bxe5 {[%emt 0:00:01]} 22. dxe5 {[%emt 0:00:01]} Rxe5 {[%emt 0:00:03]} 23. Rac1 {[%emt 0:00:03]} Bb3 {[%emt 0:00:02]} 24. Qd3 {[%emt 0:00:02]} Nc5 {[%emt 0:00:01]} 25. Qd4 {[%emt 0:00:01]} Qd6 {[%emt 0:00:02]} 26. Nxb5 {[%emt 0:00:01]} cxb5 {[%emt 0:00:01]} 27. Rxc5 {[%emt 0:00:01]} Bxd1 {[%emt 0:00:01]} 28. Bd2 {[%emt 0:00:01]} Re6 {[%emt 0:00:01]} 29. Bb4 {[%emt 0:00:02]} Bb3 {[%emt 0:00:01]} 30. Kh2 {[%emt 0:00:01]} Bc4 {[%emt 0:00:02]} 31. Rxc4 {[%emt 0:00:01]} Qe5 {[%emt 0:00:02]} 32. Qxe5 {[%emt 0:00:00]} Rxe5 {[%emt 0:00:01]} 33. Rc5 {[%emt 0:00:01]} Rb8 {[%emt 0:00:01]} 34. Bc3 {[%emt 0:00:01]} Rf5 {[%emt 0:00:01]} 35. Rc6 {[%emt 0:00:01]} Ne4 {[%emt 0:00:01]} 36. Be1 {[%emt 0:00:01]} Nxf2 {[%emt 0:00:01]} 37. Bc3 {[%emt 0:00:01]} Nd1 {[%emt 0:00:01]} 38. e4 {[%emt 0:00:01]} dxe4 {[%emt 0:00:01]} 39. Bxe4 {[%emt 0:00:00]} Rf2+ {[%emt 0:00:00]} 40. Kg1 {[%emt 0:00:01]} Nxc3 {[%emt 0:00:00]} 41. bxc3 {[%emt 0:00:01]} Ra2 {[%emt 0:00:01]} 42. Bd5 {[%emt 0:00:00]} Rxa3 {[%emt 0:00:01]} 43. Rc7 {[%emt 0:00:00]} Ra1+ {[%emt 0:00:00]} 44. Kg2 {[%emt 0:00:01] (Lag: Av=0.06s, max=0.6s)} 1-0

[Event "Test Tournament"]
[Site "Emanuel Lasker Arena"]
[Date "2024.04.09"]
[Round "2"]
[White "Antonella"]
[Black "Alicia"]
[Result "1-0"]
[WhiteElo "2040"]
[BlackElo "2226"]
[Annotator "RC"]
[PlyCount "69"]
[EventDate "2024.04.09"]
[EventType "swiss (blitz)"]
[TimeControl "60"]

1. e4 {[%emt 0:00:01]} c5 {[%emt 0:00:01]} 2. Nf3 {[%emt 0:00:01]} d6 {[%emt 0:00:01]} 3. d4 {[%emt 0:00:01]} cxd4 {[%emt 0:00:01]} 4. Nxd4 {[%emt 0:00:01]} Nf6 {[%emt 0:00:01]} 5. Nc3 {[%emt 0:00:01]} a6 {[%emt 0:00:01]} 6. Be3 {[%emt 0:00:01]} e6 {[%emt 0:00:01]} 7. f3 {[%emt 0:00:01]} b5 {[%emt 0:00:04]} 8. Qd2 {[%emt 0:00:01]} Bb7 {[%emt 0:00:01]} 9. a4 {[%emt 0:00:01]} b4 {[%emt 0:00:08]} 10. Na2 {[%emt 0:00:14]} d5 {[%emt 0:00:00]} 11. e5 {[%emt 0:00:01]} h5 {[%emt 0:00:09]} 12. exf6 {[%emt 0:00:01]} gxf6 {[%emt 0:00:01]} 13. c3 {[%emt 0:00:01]} bxc3 {[%emt 0:00:02]} 14. Nxc3 {[%emt 0:00:01]} Qb6 {[%emt 0:00:02]} 15. Nf5 {[%emt 0:00:03]} Qb3 {[%emt 0:00:03]} 16. Nd4 {[%emt 0:00:03]} Bc5 {[%emt 0:00:07]} 17. Nxb3 {[%emt 0:00:01]} Bb4 {[%emt 0:00:02]} 18. Bb6 {[%emt 0:00:02]} Nd7 {[%emt 0:00:02]} 19. Ba5 {[%emt 0:00:02]} Bd6 {[%emt 0:00:02]} 20. Nd1 {[%emt 0:00:02]} f5 {[%emt 0:00:01]} 21. Bc3 {[%emt 0:00:02]} Ne5 {[%emt 0:00:01]} 22. f4 {[%emt 0:00:02]} d4 {[%emt 0:00:02]} 23. Qxd4 {[%emt 0:00:01]} Bd5 {[%emt 0:00:01]} 24. fxe5 {[%emt 0:00:01]} Bf8 {[%emt 0:00:01]} 25. Nd2 {[%emt 0:00:01]} h4 {[%emt 0:00:01]} 26. a5 {[%emt 0:00:01]} Bh6 {[%emt 0:00:01]} 27. Qa4+ {[%emt 0:00:01]} Kf8 {[%emt 0:00:01]} 28. Qb4+ {[%emt 0:00:01]} Kg7 {[%emt 0:00:01]} 29. Qd4 {[%emt 0:00:01]} h3 {[%emt 0:00:01]} 30. Ne3 {[%emt 0:00:01]} Rhd8 {[%emt 0:00:01]} 31. Nxd5 {[%emt 0:00:01]} Rxd5 {[%emt 0:00:00]} 32. Qf2 {[%emt 0:00:01]} Bg5 {[%emt 0:00:01]} 33. Bc4 {[%emt 0:00:01]} Rad8 {[%emt 0:00:01]} 34. Bxd5 {[%emt 0:00:01]} hxg2 {[%emt 0:00:01] '} 35. Bxg2 {[%emt 0:00:01] (Lag: Av=0.06s, max=0.3s)} 1-0

[Event "Test Tournament"]
[Site "Emanuel Lasker Arena"]
[Date "2024.04.09"]
[Round "2"]
[White "ArrowPlay"]
[Black "Brutus"]
[Result "1-0"]
[WhiteElo "2027"]
[BlackElo "2041"]
[Annotator "RC"]
[PlyCount "91"]
[EventDate "2024.04.09"]
[EventType "swiss (blitz)"]
[TimeControl "60"]

1. d4 {[%emt 0:00:01]} d5 {[%emt 0:00:01]} 2. c4 {[%emt 0:00:01]} e6 {[%emt 0:00:01]} 3. Nc3 {[%emt 0:00:01]} c5 {[%emt 0:00:01]} 4. cxd5 {[%emt 0:00:01]} exd5 {[%emt 0:00:01]} 5. dxc5 {[%emt 0:00:01]} d4 {[%emt 0:00:01]} 6. Na4 {[%emt 0:00:01]} b5 {[%emt 0:00:01]} 7. cxb6 {[%emt 0:00:01]} axb6 {[%emt 0:00:01]} 8. b3 {[%emt 0:00:01]} b5 {[%emt 0:00:01]} 9. Nb2 {[%emt 0:00:01]} Nc6 {[%emt 0:00:02]} 10. Nf3 {[%emt 0:00:04]} Nf6 {[%emt 0:00:03]} 11. a4 {[%emt 0:00:04]} Bb4+ {[%emt 0:00:04]} 12. Bd2 {[%emt 0:00:01]} O-O {[%emt 0:00:03]} 13. axb5 {[%emt 0:00:01]} Rxa1 {[%emt 0:00:04]} 14. Qxa1 {[%emt 0:00:01]} Bxd2+ {[%emt 0:00:01]} 15. Nxd2 {[%emt 0:00:01]} Na5 {[%emt 0:00:03]} 16. Nbc4 {[%emt 0:00:03]} Nb7 {[%emt 0:00:03]} 17. Qa7 {[%emt 0:00:03]} Qd5 {[%emt 0:00:03]} 18. e3 {[%emt 0:00:06]} Qxb5 {[%emt 0:00:01]} 19. Qxd4 {[%emt 0:00:01]} Rd8 {[%emt 0:00:02]} 20. Nb6 {[%emt 0:00:03]} Qc6 {[%emt 0:00:02]} 21. Qb4 {[%emt 0:00:01]} Qc1+ {[%emt 0:00:01]} 22. Ke2 {[%emt 0:00:00]} Bg4+ {[%emt 0:00:02]} 23. f3 {[%emt 0:00:01]} Bf5 {[%emt 0:00:02]} 24. g4 {[%emt 0:00:03]} Bd3+ {[%emt 0:00:01]} 25. Kf2 {[%emt 0:00:01]} Nc5 {[%emt 0:00:01]} 26. Bg2 {[%emt 0:00:02]} Qc2 {[%emt 0:00:02]} 27. Kg3 {[%emt 0:00:03]} h5 {[%emt 0:00:01]} 28. g5 {[%emt 0:00:01]} Bb5 {[%emt 0:00:01]} 29. Nf1 {[%emt 0:00:02]} Nd3 {[%emt 0:00:01]} 30. Qxb5 {[%emt 0:00:01]} Qf2+ {[%emt 0:00:01]} 31. Kh3 {[%emt 0:00:01]} Ne1 {[%emt 0:00:01]} 32. Rg1 {[%emt 0:00:01]} Qxg1 {[%emt 0:00:01]} 33. Qe2 {[%emt 0:00:01]} Nxg2 {[%emt 0:00:01]} 34. Qxg2 {[%emt 0:00:01]} Qxg2+ {[%emt 0:00:00]} 35. Kxg2 {[%emt 0:00:01]} Rd6 {[%emt 0:00:01]} 36. Nc4 {[%emt 0:00:01]} Rd3 {[%emt 0:00:00]} 37. gxf6 {[%emt 0:00:00]} Rxb3 {[%emt 0:00:00]} 38. fxg7 {[%emt 0:00:00]} Kxg7 {[%emt 0:00:00]} 39. Ng3 {[%emt 0:00:00]} Kg6 {[%emt 0:00:01]} 40. f4 {[%emt 0:00:01]} h4 {[%emt 0:00:00]} 41. Ne4 {[%emt 0:00:01]} f5 {[%emt 0:00:01]} 42. Ne5+ {[%emt 0:00:00]} Kg7 {[%emt 0:00:01]} 43. Nd6 {[%emt 0:00:00]} Kf6 {[%emt 0:00:00]} 44. Nec4 {[%emt 0:00:01]} Rc3 {[%emt 0:00:00]} 45. Kh3 {[%emt 0:00:01]} Rc2 {[%emt 0:00:00] '} 46. Kxh4 {[%emt 0:00:01] (Lag: Av=0.06s, max=0.4s)} 1-0

[Event "Test Tournament"]
[Site "Emanuel Lasker Arena"]
[Date "2024.04.09"]
[Round "2"]
[White "NicholasRenzi"]
[Black "Daenerys"]
[Result "0-1"]
[WhiteElo "2016"]
[BlackElo "1922"]
[Annotator "RC"]
[PlyCount "46"]
[EventDate "2024.04.09"]
[EventType "swiss (blitz)"]
[TimeControl "60"]

1. d4 {[%emt 0:00:01]} Nf6 {[%emt 0:00:01]} 2. c4 {[%emt 0:00:01]} e5 {[%emt 0:00:02]} 3. e3 {[%emt 0:00:01]} exd4 {[%emt 0:00:02]} 4. exd4 {[%emt 0:00:01]} d5 {[%emt 0:00:01]} 5. Nf3 {[%emt 0:00:01]} Be7 {[%emt 0:00:01]} 6. Nc3 {[%emt 0:00:05]} O-O {[%emt 0:00:01]} 7. Bd3 {[%emt 0:00:01]} dxc4 {[%emt 0:00:01]} 8. Bxc4 {[%emt 0:00:01]} Nbd7 {[%emt 0:00:01]} 9. O-O {[%emt 0:00:01]} Nb6 {[%emt 0:00:02]} 10. Bb3 {[%emt 0:00:01]} c6 {[%emt 0:00:02]} 11. Ne5 {[%emt 0:00:01]} h6 {[%emt 0:00:01]} 12. Re1 {[%emt 0:00:01]} Bb4 {[%emt 0:00:02]} 13. Qd3 {[%emt 0:00:02]} a5 {[%emt 0:00:06]} 14. Bxh6 {[%emt 0:00:01]} Ng4 {[%emt 0:00:01]} 15. Bf4 {[%emt 0:00:06]} Qh4 {[%emt 0:00:03]} 16. Bg3 {[%emt 0:00:04]} Qf6 {[%emt 0:00:03]} 17. Ng6 {[%emt 0:00:03]} Bf5 {[%emt 0:00:03]} 18. Nd5 {[%emt 0:00:02]} Qxg6 {[%emt 0:00:01]} 19. Nxb4 {[%emt 0:00:01]} Bxd3 {[%emt 0:00:01]} 20. Nxd3 {[%emt 0:00:01]} Qxd3 {[%emt 0:00:01]} 21. Rad1 {[%emt 0:00:03]} Qg6 {[%emt 0:00:02]} 22. Re7 {[%emt 0:00:02]} Qf6 {[%emt 0:00:02]} 23. Rxb7 {[%emt 0:00:01]} a4 {[%emt 0:00:02] Time (Lag: Av=0.08s, max=0.8s) .} 0-1